bitfinex/quotes_SOLUSD_20250223
["timestamp","ask_amount","ask_price","bid_price","bid_amount"]
[1740331075513,39.79714886,167.66,167.65,8.76129891]
[1740331077214,40.91281912,167.66,167.65,8.76129891]
[1740331081993,39.79714886,167.66,167.65,8.76129891]
[1740331089826,0.03,167.66,167.65,14.72609891]
[1740331090714,0.03,167.69,167.67,63.80649455]
[1740331090914,0.03,167.69,167.68,63.80649455]
[1740331092410,0.03,167.69,167.68,69.77019455]
[1740331093200,0.03,167.69,167.68,28.76129891]
[1740331094038,1.14567026,167.69,167.68,8.76129891]
[1740331095411,1.14567026,167.69,167.64,6.0281]
[1740331095605,1.14567026,167.69,167.68,8.76129891]
[1740331095606,0.03,167.69,167.68,8.76129891]
[1740331105319,18.64964886,167.67,167.66,8.76129891]
[1740331105618,19.76531912,167.67,167.66,8.76129891]
[1740331107746,100.56531912,167.67,167.66,8.76129891]
[1740331109241,19.76531912,167.67,167.66,8.76129891]
[1740331110143,19.76531912,167.67,167.66,8.82429891]
[1740331111046,19.76531912,167.67,167.66,0.063]
[1740331112532,0.03,167.69,167.68,20.0]
[1740331112736,0.03,167.69,167.68,28.76129891]
[1740331113743,0.03,167.69,167.68,8.76129891]
[1740331118445,0.03,167.69,167.68,14.72499891]
[1740331120650,0.03,167.69,167.66,0.063]
[1740331120839,21.1014,167.67,167.66,0.063]
[1740331121259,39.75104886,167.67,167.66,0.063]
[1740331121567,39.75104886,167.67,167.66,8.82429891]
[1740331121853,18.64964886,167.67,167.66,8.82429891]
[1740331122029,0.03,167.69,167.66,8.82429891]
[1740331122235,0.03,167.69,167.68,8.76129891]
[1740331122434,18.67964886,167.69,167.68,8.76129891]
[1740331123853,18.67964886,167.69,167.68,14.72499891]
[1740331124744,18.67964886,167.69,167.68,8.76129891]
[1740331125471,19.79531912,167.69,167.68,8.76129891]
[1740331125653,18.67964886,167.69,167.68,8.76129891]
[1740331134264,18.67964886,167.69,167.6,0.063]
[1740331134265,1.0,167.61,167.6,0.063]
[1740331134475,20.8634,167.58,167.55,37.95365223]
[1740331134661,1.11567026,167.57,167.55,46.71495114]
[1740331135039,1.11567026,167.57,167.56,8.82429891]
[1740331135265,81.91567026,167.59,167.56,8.82429891]
[1740331135447,81.91567026,167.59,167.58,8.76129891]
[1740331135644,100.56531912,167.59,167.58,8.76129891]
[1740331136262,99.44964886,167.59,167.58,8.76129891]
[1740331140568,80.8,167.62,167.58,8.76129891]
[1740331140788,18.64964886,167.6,167.56,0.063]
[1740331142176,18.64964886,167.6,167.59,8.79652618]
[1740331143278,80.8,167.61,167.59,8.79652618]
[1740331143448,80.8,167.61,167.6,8.76129891]
[1740331144779,99.44964886,167.61,167.6,8.76129891]
[1740331145474,80.8,167.61,167.6,43.80649455]
[1740331145649,94.89517026,167.63,167.6,8.76129891]
[1740331145849,94.89517026,167.63,167.62,8.76129891]
[1740331146175,93.7795,167.63,167.62,8.76129891]
[1740331146360,112.42914886,167.63,167.62,8.76129891]
[1740331147366,113.54481912,167.63,167.62,8.76129891]
[1740331156983,113.57481912,167.63,167.62,8.76129891]
[1740331160194,100.59531912,167.63,167.62,8.76129891]
[1740331163299,99.47964886,167.63,167.62,8.76129891]
[1740331165186,0.03,167.63,167.62,14.72709891]
[1740331165386,80.8,167.67,167.65,20.0]
[1740331165691,138.23,167.69,167.65,20.0]
[1740331165692,18.64964886,167.68,167.66,8.76129891]
[1740331165888,18.64964886,167.68,167.67,8.76129891]
[1740331167474,18.64964886,167.68,167.67,14.72529891]
[1740331169286,80.83,167.69,167.67,14.72529891]
[1740331169493,80.83,167.69,167.68,8.76129891]
[1740331170192,0.03,167.69,167.68,8.76129891]
[1740331171404,0.03,167.69,167.68,14.72499891]
[1740331173985,0.03,167.69,167.68,49.77019455]
[1740331176782,0.03,167.69,167.68,14.72499891]
[1740331178297,0.03,167.69,167.68,49.77019455]
[1740331181791,0.03,167.69,167.68,14.72499891]
[1740331182987,19.79531912,167.69,167.67,8.76129891]
[1740331183172,40.08751912,167.69,167.67,8.76129891]
[1740331183371,40.08751912,167.69,167.63,0.063]
[1740331183372,40.08751912,167.69,167.68,8.76129891]
[1740331188478,38.97184886,167.69,167.68,8.76129891]
[1740331189410,0.03,167.69,167.68,8.76129891]
[1740331190578,0.03,167.69,167.68,14.72499891]
[1740331192699,0.03,167.69,167.68,49.77019455]
[1740331201520,0.03,167.69,167.68,20.0]
[1740331201690,0.03,167.69,167.68,63.80649455]
[1740331202910,0.03,167.7,167.69,8.76129891]
[1740331203631,0.03,167.7,167.69,14.72459891]
[1740331208094,0.03,167.7,167.69,8.76129891]
[1740331208417,18.67964886,167.7,167.69,8.76129891]
[1740331209601,0.03,167.7,167.69,14.72459891]
[1740331220321,0.03,167.71,167.69,14.72459891]
[1740331220635,0.03,167.71,167.7,8.76129891]
[1740331221124,0.03,167.71,167.7,14.72429891]
[1740331222732,0.0001,167.71,167.7,14.72429891]
[1740331227134,0.03,167.74,167.73,20.0]
[1740331227330,0.03,167.74,167.73,28.76129891]
[1740331228037,0.03,167.74,167.73,34.72319891]
[1740331231135,80.78281291,167.76,167.73,34.72319891]
[1740331231328,80.78281291,167.76,167.75,8.76129891]
[1740331233826,80.78281291,167.76,167.75,14.72249891]
[1740331239149,80.81281291,167.76,167.75,14.72249891]
[1740331244090,80.81281291,167.76,167.75,5.9612]
[1740331244361,81.92848317,167.76,167.75,14.72249891]
[1740331244577,1.14567026,167.76,167.75,5.9612]
[1740331245962,1.14567026,167.76,167.75,8.76129891]
[1740331248329,1.14567026,167.76,167.75,14.72249891]
[1740331248725,0.03,167.76,167.75,14.72249891]
[1740331250736,0.03,167.76,167.75,14.78549891]
[1740331252941,0.03,167.76,167.75,8.82429891]
[1740331256167,0.03,167.76,167.75,8.85952618]
[1740331260154,18.67964886,167.76,167.75,8.85952618]
[1740331260345,18.67964886,167.76,167.75,0.09822727]
[1740331261680,0.03,167.76,167.75,14.82072618]
[1740331265690,18.67964886,167.76,167.75,14.82072618]
[1740331266009,18.67964886,167.76,167.75,8.85952618]
[1740331268673,19.79531912,167.76,167.75,8.85952618]
[1740331275515,19.79531912,167.76,167.71,14.9063]
[1740331275516,34.51741803,167.76,167.69,8.82429891]
[1740331275717,18.64964886,167.74,167.69,8.82429891]
[1740331276008,1.11567026,167.73,167.69,8.82429891]
[1740331276208,18.64964886,167.71,167.69,8.82429891]
[1740331276391,1.11567026,167.7,167.69,8.82429891]
[1740331277220,157.96531912,167.7,167.69,0.063]
[1740331277402,156.84964886,167.7,167.69,0.063]
[1740331278412,24.61264886,167.7,167.69,0.063]
[1740331278596,25.72831912,167.7,167.69,0.063]
[1740331279495,19.76531912,167.7,167.69,0.063]
[1740331282707,19.76531912,167.7,167.69,8.82429891]
[1740331283910,19.76531912,167.7,167.69,9.35775432]
[1740331284209,24.20531912,167.7,167.69,9.35775432]
[1740331284390,24.20531912,167.7,167.69,0.063]
[1740331284707,24.20531912,167.7,167.69,9.35775432]
[1740331286015,162.40531912,167.7,167.69,9.35775432]
[1740331286308,161.28964886,167.7,167.69,9.35775432]
[1740331287314,161.28964886,167.7,167.69,0.063]
[1740331288208,161.28964886,167.7,167.69,9.35775432]
[1740331289591,138.2,167.7,167.69,15.32105432]
[1740331289817,0.03,167.75,167.72,20.0]
[1740331290005,1.14567026,167.75,167.74,9.29475432]
[1740331290312,18.64964886,167.74,167.73,9.29475432]
[1740331290519,156.84964886,167.74,167.72,9.29475432]
[1740331290820,1.11567026,167.73,167.72,9.29475432]
[1740331291703,1.11567026,167.73,167.72,15.25705432]
[1740331292494,138.2,167.74,167.72,15.25705432]
[1740331292692,0.03,167.75,167.73,9.29475432]
[1740331292998,0.03,167.75,167.72,5.9623]
[1740331292999,0.03,167.75,167.74,9.29475432]
[1740331293516,0.03,167.75,167.74,15.25635432]
[1740331307535,0.03,167.75,167.74,20.0]
[1740331307830,0.03,167.75,167.74,9.29475432]
[1740331308809,0.03,167.75,167.74,35.25635432]
[1740331320333,0.03,167.75,167.74,35.31935432]
[1740331321636,80.83,167.75,167.74,29.35775432]
[1740331321942,1.14567026,167.75,167.74,9.35775432]
[1740331322319,19.79531912,167.75,167.74,9.35775432]
[1740331322842,39.98201912,167.75,167.74,0.063]
[1740331323018,45.94321912,167.75,167.74,0.063]
[1740331325746,39.98201912,167.75,167.74,0.063]
[1740331329844,45.94321912,167.75,167.74,0.063]
[1740331330925,45.44321912,167.75,167.74,0.063]
[1740331331249,18.64964886,167.74,167.72,0.063]
[1740331331427,19.29531912,167.73,167.72,0.063]
[1740331331827,25.25721912,167.73,167.72,0.063]
[1740331332434,19.29531912,167.73,167.72,9.35775432]
[1740331335261,25.25721912,167.73,167.72,0.063]
[1740331335749,19.29531912,167.73,167.72,0.063]
[1740331336436,25.25721912,167.73,167.72,0.063]
[1740331337039,39.14884886,167.72,167.69,0.063]
[1740331337251,18.64964886,167.7,167.69,0.063]
[1740331338165,24.61264886,167.7,167.69,0.063]
[1740331341666,18.64964886,167.7,167.69,0.063]
[1740331342864,0.64567026,167.71,167.69,9.35914017]
[1740331343048,4.46,167.7,167.69,0.063]
[1740331343445,4.46,167.71,167.69,9.35914017]
[1740331344652,4.46,167.71,167.7,9.29614017]
[1740331344857,4.46,167.71,167.7,15.25914017]
[1740331347574,5.10567026,167.71,167.7,15.25914017]
[1740331347783,5.10567026,167.71,167.7,9.2919024]
[1740331348351,143.30567026,167.71,167.7,9.2919024]
[1740331348557,142.66,167.71,167.7,9.2919024]
[1740331349282,142.66,167.71,167.7,15.2549024]
[1740331349887,138.2,167.71,167.7,15.2549024]
[1740331356380,156.84964886,167.71,167.7,9.2919024]
[1740331356583,156.84964886,167.71,167.69,9.3549024]
[1740331356763,138.2,167.71,167.69,6.0263]
[1740331357774,0.03,167.72,167.7,9.2919024]
[1740331357977,0.03,167.72,167.71,29.2919024]
[1740331358464,0.03,167.72,167.71,35.2545024]
[1740331361787,0.03,167.72,167.71,25.9626]
[1740331362085,0.03,167.72,167.71,35.2545024]
[1740331370699,0.03,167.72,167.71,29.2919024]
[1740331370901,0.03,167.72,167.71,29.3549024]
[1740331371773,0.67567026,167.72,167.71,9.3549024]
[1740331375411,0.03,167.72,167.71,9.3549024]
[1740331375704,0.03,167.72,167.71,15.3175024]
[1740331384093,138.2,167.74,167.73,20.0]
[1740331384285,138.2,167.74,167.73,29.2919024]
[1740331385091,219.0,167.74,167.73,29.2919024]
[1740331385290,219.0,167.74,167.73,35.2538024]
[1740331390822,80.8,167.74,167.73,72.421412]
[1740331391121,80.8,167.74,167.73,35.2538024]
[1740331394598,80.83,167.74,167.73,35.2538024]
[1740331395898,0.03,167.74,167.73,35.2538024]
[1740331407626,0.03,167.74,167.73,35.3168024]
[1740331411441,0.03,167.74,167.73,72.484412]
[1740331412915,0.03,167.74,167.73,35.3168024]
[1740331417038,0.03,167.74,167.73,29.3549024]
[1740331417237,0.03,167.74,167.73,35.3168024]
[1740331446262,0.03,167.74,167.73,26.0249]
[1740331446573,0.03,167.74,167.73,35.3168024]
[1740331462686,0.03,167.75,167.73,72.484412]
[1740331462907,0.03,167.75,167.74,52.421112]
[1740331465297,0.03,167.75,167.74,15.2535024]
[1740331468804,0.03,167.75,167.74,52.421112]
[1740331468986,0.03,167.75,167.74,15.2535024]
[1740331475074,12.88877567,167.81,167.77,20.0]
[1740331475278,17.32877567,167.81,167.79,9.2919024]
[1740331476805,0.03,167.8,167.79,9.2919024]
[1740331477104,0.03,167.8,167.79,52.419312]
[1740331477310,12.88877567,167.81,167.79,52.419312]
[1740331477610,78.26037567,167.84,167.83,20.0]
[1740331477911,93.1401,167.84,167.83,29.2919024]
[1740331479080,93.1401,167.84,167.83,35.2503024]
[1740331479482,93.1401,167.84,167.77,5.9605]
[1740331479483,78.90604593,167.84,167.77,5.9605]
[1740331479688,150.71437567,167.83,167.82,9.2919024]
[1740331479904,69.91437567,167.83,167.82,9.2919024]
[1740331480115,70.56004593,167.83,167.82,9.2919024]
[1740331480908,146.72027567,167.82,167.77,5.9605]
[1740331481094,164.24784593,167.81,167.79,9.2919024]
[1740331481415,163.60217567,167.81,167.79,9.2919024]
[1740331481582,0.64567026,167.8,167.79,9.2919024]
[1740331481909,80.8,167.79,167.78,9.2919024]
[1740331482111,85.24,167.79,167.78,9.2919024]
[1740331482298,85.88567026,167.79,167.78,9.2919024]
[1740331482489,3.9941,167.78,167.77,9.2919024]
[1740331482792,142.1941,167.78,167.77,9.2919024]
[1740331491139,148.1542,167.78,167.77,9.2919024]
[1740331491321,12.8878,167.77,167.75,29.2919024]
[1740331491622,0.64567026,167.76,167.75,29.2919024]
[1740331491829,0.64567026,167.76,167.74,9.3549024]
[1740331493090,0.64567026,167.76,167.75,9.2919024]
[1740331495089,94.33347026,167.77,167.75,9.2919024]
[1740331495400,94.33347026,167.77,167.76,9.2919024]
[1740331495604,98.77347026,167.77,167.76,9.2919024]
[1740331497026,17.97347026,167.77,167.76,9.2919024]
[1740331497319,17.97347026,167.77,167.74,6.0245]
[1740331497526,17.97347026,167.77,167.74,9.3549024]
[1740331497694,23.93407026,167.77,167.74,9.3549024]
[1740331499012,33.22597266,167.77,167.74,0.063]
[1740331499319,27.94155126,167.75,167.74,0.063]
[1740331499613,237.64964886,167.74,167.73,0.063]
[1740331499816,18.64964886,167.74,167.73,0.063]
[1740331500519,0.64567026,167.75,167.73,0.063]
[1740331500906,0.64567026,167.75,167.73,9.3549024]
[1740331501106,0.64567026,167.75,167.74,9.2919024]
[1740331502817,0.64567026,167.75,167.74,15.2535024]
[1740331502999,138.84567026,167.75,167.74,15.2535024]
[1740331503194,138.2,167.75,167.74,15.2535024]
[1740331503400,142.64,167.75,167.74,15.2535024]
[1740331505523,142.64,167.75,167.74,15.3165024]
[1740331505833,142.64,167.79,167.77,20.0]
[1740331506152,142.64,167.79,167.78,9.2919024]
[1740331506318,138.2,167.79,167.78,9.2919024]
[1740331506522,142.64,167.79,167.78,9.2919024]
[1740331507203,138.2,167.79,167.78,9.2919024]
[1740331507403,138.2,167.79,167.78,15.2520024]
[1740331509324,0.03,167.82,167.81,20.0]
[1740331509508,0.03,167.82,167.81,29.2919024]
[1740331510208,0.03,167.82,167.81,20.0]
[1740331511625,0.03,167.82,167.81,29.2919024]
[1740331514526,0.03,167.82,167.81,9.2919024]
[1740331515913,0.03,167.82,167.8,9.2919024]
[1740331516115,0.03,167.82,167.78,9.2919024]
[1740331516718,18.67964886,167.82,167.78,9.2919024]
[1740331516955,15.9266,167.8,167.76,9.2919024]
[1740331517244,0.64567026,167.79,167.75,9.2919024]
[1740331518252,6.60577026,167.79,167.75,9.2919024]
[1740331518557,18.64964886,167.78,167.74,0.063]
[1740331518846,5.08567026,167.77,167.74,0.063]
[1740331520623,11.04647026,167.77,167.74,0.063]
[1740331520851,11.04647026,167.77,167.74,9.3549024]
[1740331521030,5.08567026,167.77,167.74,9.3549024]
[1740331521229,5.08567026,167.77,167.75,9.2919024]
[1740331521544,5.08567026,167.77,167.76,9.2919024]
[1740331521717,4.44,167.77,167.76,9.2919024]
[1740331522443,4.44,167.78,167.77,5.9605]
[1740331522625,4.44,167.78,167.77,15.2524024]
[1740331529223,138.2,167.79,167.77,15.2524024]
[1740331529442,138.2,167.79,167.78,9.2919024]
[1740331529847,138.2,167.79,167.78,15.2520024]
[1740331538734,223.44,167.81,167.78,15.2520024]
[1740331538940,223.44,167.81,167.8,9.2919024]
[1740331539136,142.64,167.81,167.8,9.2919024]
[1740331541251,142.67,167.81,167.8,9.2919024]
[1740331544550,142.67,167.81,167.79,9.2919024]
[1740331544752,3.554,167.79,167.78,9.2919024]
[1740331544950,3.554,167.79,167.76,9.2919024]
[1740331545156,151.15877026,167.78,167.75,9.2919024]
[1740331545348,151.15877026,167.78,167.74,0.063]
[1740331545349,150.5131,167.78,167.74,0.063]
[1740331545536,138.84567026,167.77,167.74,0.063]
[1740331545862,138.2,167.76,167.74,0.063]
[1740331546178,27.19711912,167.75,167.74,0.063]
[1740331546358,18.64964886,167.74,167.71,0.063]
[1740331546659,0.64567026,167.73,167.71,0.063]
[1740331547334,12.98,167.72,167.71,0.063]
[1740331551374,12.98,167.72,167.71,9.3549024]
[1740331552665,12.98,167.72,167.71,0.063]
[1740331554858,13.62567026,167.72,167.71,0.063]
[1740331559478,13.62567026,167.72,167.71,9.3549024]
[1740331560872,13.62567026,167.72,167.71,0.063]
[1740331567401,38.23761912,167.72,167.71,0.063]
[1740331574607,37.55964886,167.71,167.7,0.063]
[1740331574811,50.05315126,167.71,167.7,0.063]
[1740331575176,37.55964886,167.7,167.69,0.063]
[1740331575403,50.69882152,167.7,167.69,0.063]
[1740331575603,275.66182152,167.7,167.69,0.063]
[1740331575909,275.01615126,167.7,167.69,0.063]
[1740331576978,265.72424886,167.7,167.69,0.063]
[1740331577782,259.76124886,167.7,167.69,0.063]
[1740331577987,265.72424886,167.7,167.69,0.063]
[1740331578408,240.85124886,167.7,167.69,0.063]
[1740331579309,245.29124886,167.7,167.69,0.063]
[1740331580211,26.29124886,167.7,167.69,0.063]
[1740331580407,26.93691912,167.7,167.69,0.063]
[1740331580613,8.28727026,167.7,167.69,9.3549024]
[1740331583609,8.28727026,167.7,167.69,15.3182024]
[1740331583906,4.44,167.7,167.69,15.3182024]
[1740331586690,4.44,167.7,167.69,9.3549024]
[1740331590615,4.503,167.7,167.69,9.3549024]
[1740331591814,4.503,167.7,167.69,0.063]
[1740331593424,4.503,167.7,167.69,9.3549024]
[1740331603221,4.503,167.7,167.69,0.063]
[1740331604627,4.503,167.7,167.69,9.3549024]
[1740331605309,4.503,167.7,167.69,15.3182024]
[1740331605507,4.503,167.7,167.69,9.3549024]
[1740331610939,4.503,167.7,167.69,0.063]
[1740331612425,25.91644886,167.7,167.69,0.063]
[1740331612608,42.17135126,167.7,167.69,0.063]
[1740331621136,2.8268,167.7,167.69,0.063]
[1740331621346,7.2668,167.7,167.69,9.3549024]
[1740331622128,2.8268,167.7,167.69,9.3549024]
[1740331622434,4.503,167.7,167.69,9.3549024]
[1740331622744,0.063,167.7,167.69,9.3549024]
[1740331623036,4.503,167.7,167.69,9.3549024]
[1740331623231,0.063,167.7,167.69,15.3182024]
[1740331640835,0.063,167.7,167.69,9.3549024]
[1740331643553,3.17277026,167.7,167.69,0.063]
[1740331644027,9.13577026,167.7,167.69,0.063]
[1740331645157,27.78541912,167.7,167.69,0.063]
[1740331645846,28.70074886,167.69,167.68,0.063]
[1740331646052,2.305,167.68,167.63,0.063]
[1740331646361,18.64964886,167.66,167.63,0.063]
[1740331646544,0.64567026,167.65,167.63,0.063]
[1740331646748,80.8,167.64,167.63,0.063]
[1740331646933,2.305,167.64,167.63,0.063]
[1740331647261,2.305,167.64,167.63,9.3549024]
[1740331649440,2.305,167.64,167.63,15.3204024]
[1740331651557,2.305,167.64,167.63,9.3549024]
[1740331652135,2.305,167.64,167.63,0.063]
[1740331661289,20.95464886,167.64,167.63,0.063]
[1740331661472,36.24644886,167.64,167.63,0.063]
[1740331661655,46.53835126,167.64,167.63,0.063]
[1740331661866,48.18402152,167.64,167.63,0.063]
[1740331662987,48.18402152,167.64,167.6,0.063]
[1740331662988,1.0,167.62,167.6,0.063]
[1740331663185,36.28572152,167.61,167.6,0.063]
[1740331663486,45.61242152,167.61,167.6,0.063]
[1740331664349,21.90814886,167.6,167.59,0.62529302]
[1740331664672,32.20005126,167.6,167.59,0.62529302]
[1740331666573,38.16655126,167.6,167.59,0.62529302]
[1740331667979,37.16655126,167.6,167.59,0.62529302]
[1740331668180,27.87464886,167.6,167.59,0.62529302]
[1740331668557,26.87464886,167.6,167.59,0.62529302]
[1740331668752,20.90814886,167.6,167.59,0.62529302]
[1740331668980,6.6985,167.6,167.59,9.91719542]
[1740331669175,2.2585,167.6,167.59,15.88409542]
[1740331669483,6.6985,167.6,167.59,15.88409542]
[1740331669661,6.6985,167.6,167.59,15.29667346]
[1740331670883,6.6985,167.6,167.59,0.03787106]
[1740331671061,6.6985,167.6,167.59,9.32977346]
[1740331671878,6.6985,167.6,167.59,15.29667346]
[1740331673387,6.6985,167.6,167.59,9.32977346]
[1740331673686,6.6985,167.6,167.59,0.06787106]
[1740331674179,6.7615,167.6,167.59,0.06787106]
[1740331679863,6.7615,167.6,167.59,9.35977346]
[1740331680769,4.503,167.6,167.59,9.35977346]
[1740331680972,0.063,167.6,167.59,46.52738306]
[1740331682293,0.063,167.6,167.59,52.49428306]
[1740331683591,140.0636,167.64,167.63,20.0]
[1740331683773,140.0636,167.64,167.63,29.2919024]
[1740331684500,138.2,167.64,167.63,29.2919024]
[1740331685668,138.2,167.64,167.63,35.2574024]
[1740331688313,138.2,167.64,167.63,29.2919024]
[1740331688481,1.9783,167.63,167.62,9.2919024]
[1740331688683,2.62397026,167.63,167.62,9.2919024]
[1740331689201,1.9783,167.63,167.62,9.2919024]
[1740331689383,1.9783,167.63,167.62,15.2577024]
[1740331689980,1.9783,167.63,167.62,9.2919024]
[1740331690307,2.62397026,167.63,167.62,9.2919024]
[1740331692396,226.7841,167.62,167.59,6.03477106]
[1740331692599,219.0,167.61,167.59,6.03477106]
[1740331693911,219.0,167.61,167.6,20.0]
[1740331695003,219.0,167.61,167.6,25.9665]
[1740331695899,219.0,167.61,167.6,35.2584024]
[1740331696208,138.2,167.62,167.6,35.2584024]
[1740331697809,138.2,167.62,167.61,15.2581024]
[1740331699782,80.8,167.62,167.61,15.2581024]
[1740331710912,138.2,167.65,167.61,15.2581024]
[1740331711219,138.2,167.65,167.64,9.2919024]
[1740331711515,12.2241,167.66,167.64,9.2919024]
[1740331711708,12.86977026,167.66,167.64,9.2919024]
[1740331712626,12.86977026,167.66,167.64,15.2570024]
[1740331713314,145.9841,167.66,167.65,9.2919024]
[1740331713496,146.0471,167.66,167.65,9.2919024]
[1740331715830,146.0471,167.66,167.65,15.2567024]
[1740331716613,88.6471,167.66,167.65,15.2567024]
[1740331719829,7.8471,167.66,167.65,15.2567024]
[1740331766971,7.8471,167.66,167.65,9.2919024]
[1740331767148,7.8471,167.66,167.65,15.2567024]
[1740331769375,0.0001,167.66,167.65,15.2567024]
[1740331771872,0.0001,167.67,167.65,52.424312]
[1740331772180,80.863,167.7,167.69,20.0]
[1740331772379,0.063,167.7,167.69,29.2919024]
[1740331773292,0.063,167.7,167.69,25.9633]
[1740331773471,0.063,167.7,167.69,35.2552024]
[1740331774081,218.47557804,167.72,167.69,35.2552024]
[1740331774285,218.47557804,167.72,167.69,50.1636024]
[1740331775078,1.5665,167.71,167.69,50.1636024]
[1740331775284,1.5665,167.71,167.7,9.2919024]
[1740331776765,1.5665,167.71,167.7,15.2549024]
[1740331785394,1.6295,167.71,167.7,15.2549024]
[1740331785992,6.3256,167.73,167.72,29.2919024]
[1740331788101,6.3256,167.73,167.72,35.2542024]
[1740331798793,0.063,167.73,167.72,35.2542024]
[1740331798995,0.0001,167.73,167.72,35.2542024]
[1740331799384,1.5522,167.74,167.72,35.2542024]
[1740331799910,1.5522,167.74,167.73,9.2919024]
[1740331800208,1.5522,167.74,167.73,15.2538024]
[1740331800397,1.5522,167.74,167.73,52.421412]
[1740331802007,1.5522,167.74,167.73,15.2538024]
[1740331803781,86.911,167.77,167.76,20.0]
[1740331804085,80.8,167.8,167.76,29.2919024]
[1740331805400,80.8,167.8,167.76,32.28551672]
[1740331805811,80.8,167.8,167.79,20.0]
[1740331807889,1.6457,167.81,167.79,35.2517024]
[1740331808091,0.03,167.82,167.8,9.2919024]
[1740331808291,0.03,167.82,167.81,9.2919024]
[1740331809207,0.03,167.82,167.81,46.459512]
[1740331810611,0.03,167.82,167.81,52.418612]
[1740331810818,0.03,167.86,167.85,20.0]
[1740331811116,0.03,167.86,167.85,9.2919024]
[1740331812706,0.03,167.86,167.85,15.2496024]
[1740331823029,88.7892,167.87,167.85,15.2496024]
[1740331823030,1.7175,167.87,167.85,15.2496024]
[1740331823231,218.50557804,167.89,167.86,9.2919024]
[1740331823408,218.50557804,167.89,167.87,29.2919024]
[1740331824530,218.50557804,167.89,167.87,35.2488024]
[1740331826709,80.83,167.89,167.87,35.2488024]
[1740331832839,80.863,167.88,167.87,35.2488024]
[1740331834241,80.27346522,167.88,167.87,35.2488024]
[1740331837645,88.22156522,167.88,167.85,14.8942]
[1740331837851,218.59471352,167.87,167.84,9.2919024]
[1740331838019,1.6152,167.85,167.84,9.2919024]
[1740331848645,1.6152,167.85,167.84,15.2499024]
[1740331848954,1.6152,167.85,167.84,9.2919024]
[1740331849129,2.26087026,167.85,167.84,9.2919024]
[1740331849333,8.81267026,167.85,167.84,9.2919024]
[1740331849548,8.167,167.85,167.84,9.2919024]
[1740331852746,8.81267026,167.85,167.84,9.2919024]
[1740331853241,8.167,167.85,167.84,9.2919024]
[1740331853964,8.81267026,167.85,167.84,9.2919024]
[1740331855670,8.81267026,167.85,167.84,9.3549024]
[1740331856669,8.167,167.85,167.84,9.3549024]
[1740331857677,33.42001912,167.85,167.84,0.063]
[1740331859481,27.46231912,167.85,167.84,9.3549024]
[1740331859664,26.96231912,167.85,167.84,9.3549024]
[1740331860677,7.667,167.85,167.84,9.3549024]
[1740331862455,12.087,167.85,167.84,9.3549024]
[1740331865882,7.667,167.85,167.84,9.3549024]
[1740331866043,12.087,167.85,167.84,9.3549024]
[1740331870979,12.117,167.85,167.84,9.3549024]
[1740331873354,30.76664886,167.85,167.84,0.063]
[1740331873553,12.76267026,167.85,167.84,9.3549024]
[1740331873778,12.117,167.85,167.84,9.3549024]
[1740331877695,30.76664886,167.85,167.84,0.063]
[1740331878001,12.117,167.85,167.84,9.3549024]
[1740331879987,12.117,167.85,167.84,15.3129024]
[1740331881583,0.03,167.85,167.84,52.480512]
[1740331888475,0.03,167.86,167.84,52.480512]
[1740331888679,0.03,167.86,167.85,9.2919024]
[1740331888988,0.03,167.88,167.87,20.0]
[1740331889195,0.03,167.88,167.87,29.2919024]
[1740331889785,79.953,167.91,167.87,29.2919024]
[1740331889983,79.953,167.91,167.9,9.2919024]
[1740331890711,79.953,167.91,167.9,15.2478024]
[1740331891278,79.953,167.91,167.9,52.415412]
[1740331891681,87.9208,167.93,167.9,52.415412]
[1740331891982,87.9208,167.93,167.92,46.459512]
[1740331892209,7.9678,167.93,167.92,46.459512]
[1740331892596,7.9678,167.93,167.92,52.414712]
[1740331893202,7.9678,167.93,167.92,46.459512]